[Event "December 5 Late 2023"]
[Site "https://www.chess.com"]
[Date "2023.12.05"]
[Round "7"]
[White "Holt, Conrad"]
[Black "Aronian, Levon"]
[Result "0-1"]
[Board "13"]
[TimeControl "180+1"]
[WhiteFideId "2034387"]
[BlackFideId "13300474"]
[WhiteElo "2815"]
[BlackElo "3100"]
[WhiteTeam "USA"]
[BlackTeam "USA"]
[WhiteClock "0:00:02"]
[BlackClock "0:00:38"]

1. d4 {[%clk 0:03:00]}  Nf6 {[%clk 0:02:59]} 2. c4 {[%clk 0:03:01]}  g6 {[%clk 0:02:59]} 3. Nc3 {[%clk 0:03:01]}  Bg7 {[%clk 0:02:59]} 4. e4 {[%clk 0:03:01]}  O-O {[%clk 0:03:00]} 5. Nf3 {[%clk 0:03:01]}  d6 {[%clk 0:02:59]} 6. h3 {[%clk 0:03:01]}  Nc6 {[%clk 0:02:58]} 7. d5 {[%clk 0:03:00]}  Nb4 {[%clk 0:02:58]} 8. a3 {[%clk 0:02:58]}  Na6 {[%clk 0:02:58]} 9. Be3 {[%clk 0:02:58]}  e6 {[%clk 0:02:58]} 10. Be2 {[%clk 0:02:57]}  Re8 {[%clk 0:02:55]} 11. Nd2 {[%clk 0:02:55]}  exd5 {[%clk 0:02:55]} 12. cxd5 {[%clk 0:02:55]}  Nc5 {[%clk 0:02:55]} 13. Qc2 {[%clk 0:02:52]}  Qe7 {[%clk 0:02:21]} 14. Bf3 {[%clk 0:02:33]}  Nfd7 {[%clk 0:02:08]} 15. O-O {[%clk 0:02:30]}  Ne5 {[%clk 0:02:08]} 16. Be2 {[%clk 0:02:28]}  f5 {[%clk 0:02:08]} 17. Bxc5 {[%clk 0:02:24]}  dxc5 {[%clk 0:02:08]} 18. f4 {[%clk 0:02:24]}  Ng4 {[%clk 0:02:04]} 19. Bxg4 {[%clk 0:01:48]}  Bd4+ {[%clk 0:02:03]} 20. Kh2 {[%clk 0:01:48]}  fxg4 {[%clk 0:02:04]} 21. Rae1 {[%clk 0:01:32]}  gxh3 {[%clk 0:01:50]} 22. gxh3 {[%clk 0:01:28]}  Qh4 {[%clk 0:01:35]} 23. Qd3 {[%clk 0:01:25]}  g5 {[%clk 0:01:23]} 24. f5 {[%clk 0:01:22]}  Bxf5 {[%clk 0:01:19]} 25. Rxf5 {[%clk 0:00:51]}  Qxe1 {[%clk 0:01:17]} 26. Rxg5+ {[%clk 0:00:51]}  Kh8 {[%clk 0:01:16]} 27. Nf3 {[%clk 0:00:52]}  Qe3 {[%clk 0:01:10]} 28. Qxe3 {[%clk 0:00:41]}  Bxe3 {[%clk 0:01:11]} 29. Rg4 {[%clk 0:00:38]}  Rf8 {[%clk 0:01:08]} 30. Kg2 {[%clk 0:00:35]}  Rg8 {[%clk 0:01:05]} 31. Nb5 {[%clk 0:00:33]}  h5 {[%clk 0:01:00]} 32. Rxg8+ {[%clk 0:00:30]}  Rxg8+ {[%clk 0:01:00]} 33. Kf1 {[%clk 0:00:31]}  c6 {[%clk 0:00:57]} 34. Nd6 {[%clk 0:00:23]}  cxd5 {[%clk 0:00:54]} 35. exd5 {[%clk 0:00:22]}  b6 {[%clk 0:00:53]} 36. Nf5 {[%clk 0:00:18]}  Bf4 {[%clk 0:00:53]} 37. Ke2 {[%clk 0:00:15]}  Kh7 {[%clk 0:00:53]} 38. Kd3 {[%clk 0:00:15]}  Re8 {[%clk 0:00:52]} 39. Kc4 {[%clk 0:00:09]}  Kg6 {[%clk 0:00:51]} 40. N5h4+ {[%clk 0:00:06]}  Kf6 {[%clk 0:00:50]} 41. Kb5 {[%clk 0:00:06]}  Re2 {[%clk 0:00:45]} 42. b4 {[%clk 0:00:06]}  Rb2 {[%clk 0:00:42]} 43. Kc4 {[%clk 0:00:05]}  cxb4 {[%clk 0:00:40]} 44. axb4 {[%clk 0:00:05]}  a5 {[%clk 0:00:40]} 45. bxa5 {[%clk 0:00:04]}  bxa5 {[%clk 0:00:41]} 46. Nd4 {[%clk 0:00:04]}  a4 {[%clk 0:00:40]} 47. Nb5 {[%clk 0:00:04]}  Rxb5 {[%clk 0:00:39]} 48. Kxb5 {[%clk 0:00:04]}  a3 {[%clk 0:00:39]} 49. Ng2 {[%clk 0:00:02]}  a2 {[%clk 0:00:38]} 0-1

[Event "December 5 Late 2023"]
[Site "https://www.chess.com"]
[Date "2023.12.05"]
[Round "7"]
[White "Galaktionov, Artem"]
[Black "Bluebaum, Matthias"]
[Result "0-1"]
[Board "15"]
[TimeControl "180+1"]
[WhiteFideId "24175471"]
[BlackFideId "24651516"]
[WhiteElo "2848"]
[BlackElo "3018"]
[WhiteTeam "RUS"]
[BlackTeam "GER"]
[WhiteClock "0:01:35"]
[BlackClock "0:02:13"]

1. d4 {[%clk 0:03:00]}  d5 {[%clk 0:03:00]} 2. Nf3 {[%clk 0:03:00]}  e6 {[%clk 0:03:00]} 3. c4 {[%clk 0:03:00]}  Nf6 {[%clk 0:03:00]} 4. Nc3 {[%clk 0:03:00]}  Bb4 {[%clk 0:03:00]} 5. cxd5 {[%clk 0:03:01]}  exd5 {[%clk 0:03:01]} 6. Bg5 {[%clk 0:03:01]}  h6 {[%clk 0:03:01]} 7. Bxf6 {[%clk 0:03:01]}  Qxf6 {[%clk 0:03:02]} 8. e3 {[%clk 0:03:02]}  O-O {[%clk 0:03:02]} 9. Bd3 {[%clk 0:03:02]}  c6 {[%clk 0:03:03]} 10. O-O {[%clk 0:03:02]}  Bg4 {[%clk 0:03:03]} 11. h3 {[%clk 0:03:02]}  Bh5 {[%clk 0:03:04]} 12. g4 {[%clk 0:02:56]}  Bg6 {[%clk 0:03:04]} 13. Ne5 {[%clk 0:02:56]}  Bxd3 {[%clk 0:03:00]} 14. Nxd3 {[%clk 0:02:55]}  Bd6 {[%clk 0:02:57]} 15. Kg2 {[%clk 0:02:53]}  Nd7 {[%clk 0:02:56]} 16. Qf3 {[%clk 0:02:51]}  Qe7 {[%clk 0:02:55]} 17. Rh1 {[%clk 0:02:50]}  Rae8 {[%clk 0:02:37]} 18. Rag1 {[%clk 0:02:44]}  Nf6 {[%clk 0:02:32]} 19. Qe2 {[%clk 0:02:04]}  Ne4 {[%clk 0:02:27]} 20. Kf1 {[%clk 0:01:58]}  f5 {[%clk 0:02:26]} 21. gxf5 {[%clk 0:01:58]}  Rxf5 {[%clk 0:02:27]} 22. Nxe4 {[%clk 0:01:58]}  Qxe4 {[%clk 0:02:21]} 23. Rg2 {[%clk 0:01:50]}  Qxe3 {[%clk 0:02:21]} 24. Qxe3 {[%clk 0:01:47]}  Rxe3 {[%clk 0:02:22]} 25. Nc1 {[%clk 0:01:45]}  Bb4 {[%clk 0:02:13]} 26. Ne2 {[%clk 0:01:44]}  Rd3 {[%clk 0:02:14]} 27. f4 {[%clk 0:01:35]}  Rd1+ {[%clk 0:02:13]} 0-1

[Event "December 5 Late 2023"]
[Site "https://www.chess.com"]
[Date "2023.12.05"]
[Round "7"]
[White "Drygalov, Sergey"]
[Black "Korchmar, Vasiliy"]
[Result "0-1"]
[Board "18"]
[TimeControl "180+1"]
[WhiteFideId "24171743"]
[BlackFideId "24131750"]
[WhiteElo "2989"]
[BlackElo "2802"]
[WhiteTeam "RUS"]
[BlackTeam "RUS"]
[WhiteClock "0:00:07"]
[BlackClock "0:00:03"]

1. d4 {[%clk 0:02:59]}  Nf6 {[%clk 0:02:59]} 2. c4 {[%clk 0:02:59]}  e6 {[%clk 0:03:00]} 3. Nf3 {[%clk 0:02:59]}  d5 {[%clk 0:03:00]} 4. Nc3 {[%clk 0:03:00]}  dxc4 {[%clk 0:03:00]} 5. e4 {[%clk 0:02:59]}  b5 {[%clk 0:02:59]} 6. e5 {[%clk 0:03:00]}  Nd5 {[%clk 0:02:59]} 7. Nxb5 {[%clk 0:03:00]}  Nb6 {[%clk 0:02:59]} 8. Be2 {[%clk 0:02:59]}  Qd7 {[%clk 0:02:59]} 9. Nc3 {[%clk 0:02:59]}  Bb7 {[%clk 0:02:59]} 10. Be3 {[%clk 0:02:59]}  Nc6 {[%clk 0:02:58]} 11. a3 {[%clk 0:03:00]}  Ne7 {[%clk 0:02:54]} 12. Qc2 {[%clk 0:02:59]}  Nf5 {[%clk 0:02:53]} 13. Rd1 {[%clk 0:02:59]}  Be7 {[%clk 0:02:42]} 14. O-O {[%clk 0:02:48]}  O-O {[%clk 0:02:42]} 15. Qd2 {[%clk 0:02:18]}  Rad8 {[%clk 0:02:30]} 16. Bg5 {[%clk 0:02:13]}  Bxf3 {[%clk 0:02:20]} 17. Bxf3 {[%clk 0:02:08]}  Nxd4 {[%clk 0:02:06]} 18. Qxd4 {[%clk 0:01:50]}  Bxg5 {[%clk 0:02:05]} 19. Qg4 {[%clk 0:01:43]}  Qe7 {[%clk 0:02:03]} 20. Ne4 {[%clk 0:01:44]}  Bh6 {[%clk 0:01:50]} 21. Nc3 {[%clk 0:01:15]}  Rxd1 {[%clk 0:01:38]} 22. Rxd1 {[%clk 0:01:16]}  Rd8 {[%clk 0:01:38]} 23. Qe4 {[%clk 0:01:13]}  Rxd1+ {[%clk 0:01:34]} 24. Bxd1 {[%clk 0:01:14]}  Qd8 {[%clk 0:01:29]} 25. g3 {[%clk 0:00:59]}  Bc1 {[%clk 0:01:26]} 26. Qc2 {[%clk 0:00:53]}  Qd2 {[%clk 0:01:22]} 27. Qxd2 {[%clk 0:00:53]}  Bxd2 {[%clk 0:01:22]} 28. Nb5 {[%clk 0:00:52]}  a5 {[%clk 0:00:46]} 29. a4 {[%clk 0:00:41]}  Bc1 {[%clk 0:00:35]} 30. b3 {[%clk 0:00:40]}  cxb3 {[%clk 0:00:35]} 31. Bxb3 {[%clk 0:00:41]}  c5 {[%clk 0:00:31]} 32. Nd6 {[%clk 0:00:40]}  Bb2 {[%clk 0:00:25]} 33. f4 {[%clk 0:00:40]}  g5 {[%clk 0:00:23]} 34. Kf2 {[%clk 0:00:37]}  gxf4 {[%clk 0:00:21]} 35. gxf4 {[%clk 0:00:38]}  Kf8 {[%clk 0:00:17]} 36. Kf3 {[%clk 0:00:37]}  Ke7 {[%clk 0:00:16]} 37. Bc2 {[%clk 0:00:31]}  h6 {[%clk 0:00:16]} 38. Nb7 {[%clk 0:00:31]}  c4 {[%clk 0:00:04]} 39. Nxa5 {[%clk 0:00:31]}  c3 {[%clk 0:00:05]} 40. Nb7 {[%clk 0:00:28]}  Nd5 {[%clk 0:00:04]} 41. a5 {[%clk 0:00:25]}  Nb4 {[%clk 0:00:05]} 42. a6 {[%clk 0:00:20]}  Nxa6 {[%clk 0:00:02]} 43. Ke2 {[%clk 0:00:15]}  Nb4 {[%clk 0:00:03]} 44. Kd1 {[%clk 0:00:16]}  Nd5 {[%clk 0:00:03]} 45. Nc5 {[%clk 0:00:07]}  Ne3+ {[%clk 0:00:03]} 0-1

[Event "December 5 Late 2023"]
[Site "https://www.chess.com"]
[Date "2023.12.05"]
[Round "7"]
[White "Mendes Aaron Reeve"]
[Black "Sjugirov, Sanan"]
[Result "1-0"]
[Board "23"]
[TimeControl "180+1"]
[WhiteFideId "25954938"]
[BlackFideId "4189302"]
[WhiteElo "2639"]
[BlackElo "2929"]
[WhiteTeam "CAN"]
[BlackTeam "HUN"]
[WhiteClock "0:00:05"]
[BlackClock "0:00:05"]

1. e4 {[%clk 0:02:59]}  c5 {[%clk 0:03:00]} 2. Nf3 {[%clk 0:02:56]}  Nc6 {[%clk 0:03:00]} 3. Bb5 {[%clk 0:02:56]}  e6 {[%clk 0:03:01]} 4. Bxc6 {[%clk 0:02:56]}  bxc6 {[%clk 0:03:02]} 5. O-O {[%clk 0:02:53]}  Ne7 {[%clk 0:02:56]} 6. c3 {[%clk 0:02:52]}  Ng6 {[%clk 0:02:54]} 7. d4 {[%clk 0:02:51]}  d5 {[%clk 0:02:53]} 8. e5 {[%clk 0:02:47]}  cxd4 {[%clk 0:02:51]} 9. cxd4 {[%clk 0:02:47]}  c5 {[%clk 0:02:51]} 10. Be3 {[%clk 0:02:45]}  cxd4 {[%clk 0:02:50]} 11. Bxd4 {[%clk 0:02:46]}  Be7 {[%clk 0:02:47]} 12. g3 {[%clk 0:02:45]}  O-O {[%clk 0:02:42]} 13. h4 {[%clk 0:02:45]}  Ba6 {[%clk 0:02:32]} 14. Re1 {[%clk 0:02:41]}  Bb4 {[%clk 0:02:29]} 15. Nc3 {[%clk 0:02:39]}  Ne7 {[%clk 0:02:22]} 16. a3 {[%clk 0:02:37]}  Ba5 {[%clk 0:01:59]} 17. b4 {[%clk 0:02:26]}  Bb6 {[%clk 0:01:59]} 18. Na4 {[%clk 0:02:25]}  Nf5 {[%clk 0:01:56]} 19. Bc5 {[%clk 0:02:23]}  Re8 {[%clk 0:01:53]} 20. Nd4 {[%clk 0:02:22]}  Nxd4 {[%clk 0:01:41]} 21. Qxd4 {[%clk 0:02:23]}  Rb8 {[%clk 0:01:23]} 22. Rec1 {[%clk 0:02:09]}  Bc4 {[%clk 0:01:21]} 23. Nxb6 {[%clk 0:01:59]}  axb6 {[%clk 0:01:21]} 24. Bd6 {[%clk 0:01:59]}  Ra8 {[%clk 0:01:19]} 25. a4 {[%clk 0:01:59]}  h6 {[%clk 0:01:12]} 26. Ra3 {[%clk 0:01:53]}  Qd7 {[%clk 0:01:03]} 27. Rca1 {[%clk 0:01:49]}  Qb7 {[%clk 0:00:56]} 28. g4 {[%clk 0:01:39]}  Rec8 {[%clk 0:00:50]} 29. f3 {[%clk 0:01:17]}  Be2 {[%clk 0:00:35]} 30. Qd2 {[%clk 0:01:14]}  Bc4 {[%clk 0:00:31]} 31. Kf2 {[%clk 0:01:11]}  d4 {[%clk 0:00:25]} 32. Qxd4 {[%clk 0:01:09]}  Bd5 {[%clk 0:00:25]} 33. Rc3 {[%clk 0:01:02]}  Rxc3 {[%clk 0:00:24]} 34. Qxc3 {[%clk 0:01:03]}  Rc8 {[%clk 0:00:25]} 35. Qd3 {[%clk 0:01:03]}  Rc4 {[%clk 0:00:21]} 36. a5 {[%clk 0:00:59]}  bxa5 {[%clk 0:00:20]} 37. Rxa5 {[%clk 0:00:48]}  Rf4 {[%clk 0:00:19]} 38. Rb5 {[%clk 0:00:37]}  Qa7+ {[%clk 0:00:19]} 39. Rc5 {[%clk 0:00:21]}  Rxf3+ {[%clk 0:00:14]} 40. Qxf3 {[%clk 0:00:21]}  Bxf3 {[%clk 0:00:15]} 41. Kxf3 {[%clk 0:00:21]}  Qa3+ {[%clk 0:00:15]} 42. Kf2 {[%clk 0:00:21]}  Qb2+ {[%clk 0:00:14]} 43. Kf3 {[%clk 0:00:20]}  Qb3+ {[%clk 0:00:15]} 44. Kf2 {[%clk 0:00:20]}  Qh3 {[%clk 0:00:12]} 45. Rc4 {[%clk 0:00:17]}  Qxh4+ {[%clk 0:00:12]} 46. Kf3 {[%clk 0:00:17]}  Qh3+ {[%clk 0:00:12]} 47. Ke2 {[%clk 0:00:17]}  Qg2+ {[%clk 0:00:13]} 48. Kd3 {[%clk 0:00:17]}  Qf1+ {[%clk 0:00:13]} 49. Kc3 {[%clk 0:00:16]}  Qc1+ {[%clk 0:00:13]} 50. Kd3 {[%clk 0:00:16]}  Qb1+ {[%clk 0:00:13]} 51. Kd4 {[%clk 0:00:16]}  Kh7 {[%clk 0:00:12]} 52. Kc5 {[%clk 0:00:16]}  g6 {[%clk 0:00:11]} 53. b5 {[%clk 0:00:17]}  h5 {[%clk 0:00:11]} 54. gxh5 {[%clk 0:00:17]}  gxh5 {[%clk 0:00:12]} 55. b6 {[%clk 0:00:17]}  Qg1+ {[%clk 0:00:09]} 56. Kc6 {[%clk 0:00:17]}  Qf1 {[%clk 0:00:07]} 57. Rc5 {[%clk 0:00:15]}  h4 {[%clk 0:00:02]} 58. b7 {[%clk 0:00:15]}  h3 {[%clk 0:00:01]} 59. Rc2 {[%clk 0:00:07]}  Qh1+ {[%clk 0:00:01]} 60. Kc7 {[%clk 0:00:06]}  Qe4 {[%clk 0:00:02]} 61. Rh2 {[%clk 0:00:05]}  Qc4+ {[%clk 0:00:02]} 62. Kd8 {[%clk 0:00:04]}  Qb3 {[%clk 0:00:02]} 63. b8=Q {[%clk 0:00:03]}  Qg3 {[%clk 0:00:03]} 64. Qb1+ {[%clk 0:00:02]}  Kh6 {[%clk 0:00:03]} 65. Qc2 {[%clk 0:00:03]}  Kh5 {[%clk 0:00:03]} 66. Qd2 {[%clk 0:00:03]}  Qg8+ {[%clk 0:00:02]} 67. Ke7 {[%clk 0:00:02]}  Qg3 {[%clk 0:00:03]} 68. Qe2+ {[%clk 0:00:03]}  Kh4 {[%clk 0:00:04]} 69. Qf2 {[%clk 0:00:03]}  Kg4 {[%clk 0:00:04]} 70. Qxg3+ {[%clk 0:00:03]}  Kxg3 {[%clk 0:00:05]} 71. Rh1 {[%clk 0:00:04]}  Kg2 {[%clk 0:00:05]} 72. Rxh3 {[%clk 0:00:03]}  Kxh3 {[%clk 0:00:06]} 73. Kxf7 {[%clk 0:00:04]}  Kg4 {[%clk 0:00:05]} 74. Kxe6 {[%clk 0:00:05]} 1-0

[Event "December 5 Late 2023"]
[Site "https://www.chess.com"]
[Date "2023.12.05"]
[Round "7"]
[White "Kovalev, Vladislav"]
[Black "Janaszak, Dawid"]
[Result "0-1"]
[Board "25"]
[TimeControl "180+1"]
[WhiteFideId "13504398"]
[BlackFideId "1119206"]
[WhiteElo "2920"]
[BlackElo "2606"]
[WhiteTeam "FID"]
[BlackTeam "POL"]
[WhiteClock "0:00:00"]
[BlackClock "0:00:12"]

1. e4 {[%clk 0:03:00]}  c5 {[%clk 0:03:00]} 2. Nf3 {[%clk 0:03:01]}  Nc6 {[%clk 0:03:00]} 3. Bb5 {[%clk 0:03:01]}  e5 {[%clk 0:03:00]} 4. O-O {[%clk 0:02:59]}  Nge7 {[%clk 0:03:00]} 5. c3 {[%clk 0:02:56]}  g6 {[%clk 0:03:00]} 6. d4 {[%clk 0:02:56]}  cxd4 {[%clk 0:03:01]} 7. cxd4 {[%clk 0:02:57]}  exd4 {[%clk 0:03:02]} 8. Bf4 {[%clk 0:02:48]}  Bg7 {[%clk 0:03:02]} 9. Bd6 {[%clk 0:02:48]}  O-O {[%clk 0:03:03]} 10. Re1 {[%clk 0:02:42]}  a6 {[%clk 0:03:03]} 11. Bc4 {[%clk 0:02:40]}  b5 {[%clk 0:03:03]} 12. Bb3 {[%clk 0:02:35]}  Bb7 {[%clk 0:02:57]} 13. Nbd2 {[%clk 0:02:21]}  Na5 {[%clk 0:02:56]} 14. e5 {[%clk 0:02:15]}  Nxb3 {[%clk 0:02:44]} 15. Qxb3 {[%clk 0:02:10]}  h6 {[%clk 0:02:29]} 16. Nxd4 {[%clk 0:01:51]}  Re8 {[%clk 0:02:29]} 17. Ne4 {[%clk 0:01:44]}  Nc6 {[%clk 0:02:26]} 18. Nxc6 {[%clk 0:01:16]}  Bxc6 {[%clk 0:02:25]} 19. Qg3 {[%clk 0:01:02]}  Qa5 {[%clk 0:02:10]} 20. h4 {[%clk 0:00:56]}  Rac8 {[%clk 0:02:06]} 21. b4 {[%clk 0:00:50]}  Qd8 {[%clk 0:01:53]} 22. Nc5 {[%clk 0:00:39]}  a5 {[%clk 0:01:47]} 23. a3 {[%clk 0:00:39]}  a4 {[%clk 0:01:47]} 24. Re3 {[%clk 0:00:38]}  Bd5 {[%clk 0:01:30]} 25. Rd1 {[%clk 0:00:37]}  Be6 {[%clk 0:01:31]} 26. Ne4 {[%clk 0:00:32]}  Bf5 {[%clk 0:01:25]} 27. Nc5 {[%clk 0:00:30]}  Qb6 {[%clk 0:01:21]} 28. Qf4 {[%clk 0:00:30]}  Qc6 {[%clk 0:01:18]} 29. h5 {[%clk 0:00:29]}  Be6 {[%clk 0:00:42]} 30. hxg6 {[%clk 0:00:16]}  fxg6 {[%clk 0:00:41]} 31. Rd4 {[%clk 0:00:16]}  g5 {[%clk 0:00:37]} 32. Qg3 {[%clk 0:00:16]}  Rf8 {[%clk 0:00:21]} 33. f4 {[%clk 0:00:12]}  Rf5 {[%clk 0:00:20]} 34. Rf3 {[%clk 0:00:09]}  Re8 {[%clk 0:00:16]} 35. Kh2 {[%clk 0:00:09]}  Qa8 {[%clk 0:00:15]} 36. Qf2 {[%clk 0:00:04]}  Qd8 {[%clk 0:00:15]} 37. Rg3 {[%clk 0:00:04]}  Kh7 {[%clk 0:00:15]} 38. Qe3 {[%clk 0:00:04]}  Kg6 {[%clk 0:00:14]} 39. Qd3 {[%clk 0:00:04]}  Kh7 {[%clk 0:00:13]} 40. fxg5 {[%clk 0:00:03]}  hxg5 {[%clk 0:00:14]} 41. Rdg4 {[%clk 0:00:04]}  Kg8 {[%clk 0:00:13]} 42. Qe3 {[%clk 0:00:02]}  Kf7 {[%clk 0:00:13]} 43. Rxg5 {[%clk 0:00:03]}  Rh8+ {[%clk 0:00:13]} 44. Kg1 {[%clk 0:00:03]}  Rxg5 {[%clk 0:00:12]} 45. Rxg5 {[%clk 0:00:03]}  Bh6 {[%clk 0:00:12]} 46. Qf3+ {[%clk 0:00:00]}  Ke8 {[%clk 0:00:12]} 0-1

[Event "December 5 Late 2023"]
[Site "https://www.chess.com"]
[Date "2023.12.05"]
[Round "7"]
[White "Sivakumar, Shaaketh"]
[Black "Kazakouski, Valery"]
[Result "0-1"]
[Board "32"]
[TimeControl "180+1"]
[WhiteFideId "30940176"]
[BlackFideId "13507443"]
[WhiteElo "2598"]
[BlackElo "2847"]
[WhiteTeam "USA"]
[BlackTeam "LTU"]
[WhiteClock "0:01:15"]
[BlackClock "0:00:19"]

1. e4 {[%clk 0:03:00]}  c5 {[%clk 0:03:00]} 2. Nf3 {[%clk 0:02:59]}  a6 {[%clk 0:03:00]} 3. c4 {[%clk 0:02:57]}  Nc6 {[%clk 0:03:00]} 4. d4 {[%clk 0:02:54]}  cxd4 {[%clk 0:03:01]} 5. Nxd4 {[%clk 0:02:54]}  e5 {[%clk 0:03:01]} 6. Nc2 {[%clk 0:02:52]}  Bc5 {[%clk 0:03:00]} 7. Nc3 {[%clk 0:02:50]}  Nf6 {[%clk 0:02:59]} 8. Be3 {[%clk 0:02:49]}  Bxe3 {[%clk 0:02:59]} 9. Nxe3 {[%clk 0:02:50]}  d6 {[%clk 0:03:00]} 10. Be2 {[%clk 0:02:49]}  Be6 {[%clk 0:02:59]} 11. O-O {[%clk 0:02:48]}  O-O {[%clk 0:02:59]} 12. b3 {[%clk 0:02:47]}  Nd4 {[%clk 0:02:59]} 13. Nc2 {[%clk 0:02:46]}  Nc6 {[%clk 0:02:53]} 14. f3 {[%clk 0:02:41]}  Qa5 {[%clk 0:02:52]} 15. Nd5 {[%clk 0:02:39]}  Bxd5 {[%clk 0:02:48]} 16. cxd5 {[%clk 0:02:40]}  Nb4 {[%clk 0:02:40]} 17. Ne3 {[%clk 0:02:22]}  Qb6 {[%clk 0:02:34]} 18. Qd2 {[%clk 0:02:20]}  Nc2 {[%clk 0:02:25]} 19. Qxc2 {[%clk 0:02:20]}  Qxe3+ {[%clk 0:02:26]} 20. Kh1 {[%clk 0:02:19]}  Rac8 {[%clk 0:02:26]} 21. Qb2 {[%clk 0:02:16]}  Rc7 {[%clk 0:02:20]} 22. Rac1 {[%clk 0:02:14]}  Rfc8 {[%clk 0:02:19]} 23. Rxc7 {[%clk 0:02:11]}  Rxc7 {[%clk 0:02:20]} 24. Rd1 {[%clk 0:02:08]}  Nh5 {[%clk 0:02:15]} 25. Bf1 {[%clk 0:02:02]}  g6 {[%clk 0:02:11]} 26. Qd2 {[%clk 0:02:02]}  Qxd2 {[%clk 0:02:05]} 27. Rxd2 {[%clk 0:02:03]}  f5 {[%clk 0:02:03]} 28. Kg1 {[%clk 0:02:00]}  fxe4 {[%clk 0:01:36]} 29. fxe4 {[%clk 0:02:01]}  Nf6 {[%clk 0:01:37]} 30. Bd3 {[%clk 0:02:01]}  Rc1+ {[%clk 0:01:38]} 31. Kf2 {[%clk 0:02:01]}  Kf7 {[%clk 0:01:38]} 32. h3 {[%clk 0:02:00]}  Ke7 {[%clk 0:01:31]} 33. Ke3 {[%clk 0:02:01]}  Kd8 {[%clk 0:01:21]} 34. Rc2 {[%clk 0:01:55]}  Re1+ {[%clk 0:01:20]} 35. Re2 {[%clk 0:01:54]}  Rg1 {[%clk 0:01:18]} 36. Rf2 {[%clk 0:01:52]}  Ke7 {[%clk 0:01:09]} 37. Bf1 {[%clk 0:01:51]}  Nh5 {[%clk 0:01:01]} 38. Rf3 {[%clk 0:01:51]}  Rh1 {[%clk 0:00:47]} 39. Kf2 {[%clk 0:01:50]}  Nf6 {[%clk 0:00:42]} 40. Re3 {[%clk 0:01:48]}  g5 {[%clk 0:00:24]} 41. g4 {[%clk 0:01:38]}  h5 {[%clk 0:00:23]} 42. Kg2 {[%clk 0:01:34]}  Rxf1 {[%clk 0:00:19]} 43. Kxf1 {[%clk 0:01:35]}  hxg4 {[%clk 0:00:19]} 44. hxg4 {[%clk 0:01:35]}  Nxg4 {[%clk 0:00:20]} 45. Rg3 {[%clk 0:01:36]}  Nf6 {[%clk 0:00:21]} 46. Rxg5 {[%clk 0:01:35]}  Kf7 {[%clk 0:00:21]} 47. Ke2 {[%clk 0:01:20]}  Nxe4 {[%clk 0:00:21]} 48. Rh5 {[%clk 0:01:15]}  Ng3+ {[%clk 0:00:19]} 0-1

[Event "December 5 Late 2023"]
[Site "https://www.chess.com"]
[Date "2023.12.05"]
[Round "7"]
[White "Shuvalova, Polina"]
[Black "Mendez Fortes, Eduardo Jesus"]
[Result "1-0"]
[Board "33"]
[TimeControl "180+1"]
[WhiteFideId "24171760"]
[BlackFideId "3502376"]
[WhiteElo "2839"]
[BlackElo "2589"]
[WhiteTeam "RUS"]
[BlackTeam "CUB"]
[WhiteClock "0:00:59"]
[BlackClock "0:00:20"]

1. e4 {[%clk 0:03:00]}  c5 {[%clk 0:02:59]} 2. Nf3 {[%clk 0:03:01]}  d6 {[%clk 0:02:59]} 3. Bb5+ {[%clk 0:03:01]}  Nd7 {[%clk 0:02:58]} 4. O-O {[%clk 0:03:01]}  a6 {[%clk 0:02:58]} 5. Bd3 {[%clk 0:03:01]}  Ngf6 {[%clk 0:02:57]} 6. Re1 {[%clk 0:03:01]}  g6 {[%clk 0:02:57]} 7. Bf1 {[%clk 0:03:01]}  Bg7 {[%clk 0:02:57]} 8. c3 {[%clk 0:03:02]}  O-O {[%clk 0:02:55]} 9. d4 {[%clk 0:03:02]}  Qc7 {[%clk 0:02:53]} 10. a4 {[%clk 0:02:52]}  e6 {[%clk 0:02:50]} 11. h3 {[%clk 0:02:44]}  b6 {[%clk 0:02:50]} 12. Bf4 {[%clk 0:02:43]}  e5 {[%clk 0:02:48]} 13. dxe5 {[%clk 0:02:39]}  dxe5 {[%clk 0:02:48]} 14. Bh2 {[%clk 0:02:38]}  Bb7 {[%clk 0:02:47]} 15. Nbd2 {[%clk 0:02:37]}  Rad8 {[%clk 0:02:47]} 16. Qc2 {[%clk 0:02:33]}  Rfe8 {[%clk 0:02:46]} 17. Bc4 {[%clk 0:02:32]}  h6 {[%clk 0:02:40]} 18. Rad1 {[%clk 0:02:30]}  Nh5 {[%clk 0:02:23]} 19. Qb3 {[%clk 0:02:28]}  Nf8 {[%clk 0:02:19]} 20. Nf1 {[%clk 0:02:22]}  Nf4 {[%clk 0:02:17]} 21. N3d2 {[%clk 0:02:13]}  Rd7 {[%clk 0:01:22]} 22. Ne3 {[%clk 0:02:05]}  Red8 {[%clk 0:01:23]} 23. Bxf4 {[%clk 0:02:05]}  exf4 {[%clk 0:01:23]} 24. Nd5 {[%clk 0:02:05]}  Bxd5 {[%clk 0:01:21]} 25. Bxd5 {[%clk 0:02:05]}  Nh7 {[%clk 0:01:17]} 26. Nc4 {[%clk 0:02:05]}  Rb8 {[%clk 0:01:17]} 27. a5 {[%clk 0:01:54]}  b5 {[%clk 0:01:17]} 28. Nb6 {[%clk 0:01:55]}  c4 {[%clk 0:01:13]} 29. Qc2 {[%clk 0:01:48]}  Re7 {[%clk 0:01:08]} 30. e5 {[%clk 0:01:33]}  Nf8 {[%clk 0:01:08]} 31. e6 {[%clk 0:01:23]}  fxe6 {[%clk 0:01:08]} 32. Be4 {[%clk 0:01:22]}  g5 {[%clk 0:01:05]} 33. Qe2 {[%clk 0:01:19]}  Ree8 {[%clk 0:01:01]} 34. Bc2 {[%clk 0:01:17]}  Red8 {[%clk 0:00:59]} 35. Qe4 {[%clk 0:01:15]}  Qc5 {[%clk 0:00:54]} 36. Nd7 {[%clk 0:01:08]}  Nxd7 {[%clk 0:00:20]} 37. Qxe6+ {[%clk 0:01:00]}  Kf8 {[%clk 0:00:20]} 38. Rxd7 {[%clk 0:00:59]}  Re8 {[%clk 0:00:20]} 39. Qf7# {[%clk 0:00:59]} 1-0